fUST/lending_fUST_20240424
["ID","MTS","AMOUNT","RATE_DAILY","PERIOD"]
[323341021,1713906648737,-500.0,0.00019726,2]
[323341022,1713906648746,-500.0,0.00019726,2]
[323341023,1713906648755,-1236.23,0.00019726,2]
[323341024,1713906648764,-500.0,0.00019726,2]
[323341025,1713906648774,-2278.12,0.00019726,2]
[323341026,1713906648782,-275.39330332,0.00019726,2]
[323341027,1713906648791,-500.0,0.00019726,2]
[323341028,1713906648800,-10286.09,0.00019726,2]
[323341029,1713906648809,-500.0,0.00019726,2]
[323341030,1713906648819,-1883.18,0.00019726,2]
[323341031,1713906648827,-944.84,0.00019726,2]
[323341032,1713906648838,-500.0,0.00019726,2]
[323341033,1713906648847,-574.81,0.00019726,2]
[323341034,1713906648856,-1124.79,0.00019726,2]
[323341035,1713906648866,-745.02,0.00019726,2]
[323341036,1713906648875,-1217.1,0.00019726,2]
[323341037,1713906648884,-500.0,0.00019726,2]
[323341038,1713906648893,-500.0,0.00019726,2]
[323341039,1713906648902,-674.83,0.00019726,2]
[323341040,1713906648911,-3698.81,0.00019726,2]
[323341041,1713906648921,-713.93,0.00019726,2]
[323341042,1713906648931,-500.0,0.00019726,2]
[323341043,1713906648940,-7456.02,0.00019726,2]
[323341044,1713906648949,-500.0,0.00019726,2]
[323341045,1713906648959,-500.0,0.00019726,2]
[323341046,1713906648969,-567.42,0.00019726,2]
[323341047,1713906648978,-500.0,0.00019726,2]
[323341048,1713906648987,-500.0,0.00019726,2]
[323341049,1713906648996,-500.0,0.00019726,2]
[323341050,1713906649006,-7031.43,0.00019726,2]
[323341051,1713906649015,-500.0,0.00019726,2]
[323341052,1713906649025,-500.0,0.00019726,2]
[323341053,1713906649035,-500.0,0.00019726,2]
[323341054,1713906649044,-760.73,0.00019726,2]
[323341055,1713906649054,-1432.34,0.00019726,2]
[323341056,1713906649064,-3253.21,0.00019726,2]
[323341057,1713906649074,-180.27133171,0.00019726,2]
[323341058,1713906649085,-4015.64,0.00019726,2]
[323341059,1713906649094,-5262.87,0.00019726,2]
[323341060,1713906649103,-928.49,0.00019726,2]
[323341061,1713906649113,-500.0,0.00019726,2]
[323341062,1713906649126,-500.0,0.00019726,2]
[323341063,1713906649136,-500.0,0.00019726,2]
[323341064,1713906649145,-500.0,0.00019726,2]
[323341065,1713906649155,-500.0,0.00019726,2]
[323341066,1713906649165,-633.96,0.00019726,2]
[323341067,1713906649174,-1467.47,0.00019726,2]
[323341068,1713906649184,-500.0,0.00019726,2]
[323341069,1713906649194,-500.0,0.00019726,2]
[323341070,1713906649204,-500.0,0.00019726,2]
[323341071,1713906649214,-626.38,0.00019726,2]
[323341072,1713906649223,-944.49,0.00019726,2]
[323341073,1713906649233,-500.0,0.00019726,2]
[323341074,1713906649242,-1655.39,0.00019726,2]
[323341075,1713906649252,-500.0,0.00019726,2]
[323341076,1713906649261,-500.0,0.00019726,2]
[323341077,1713906649271,-500.0,0.00019726,2]
[323341078,1713906649281,-500.0,0.00019726,2]
[323341079,1713906649290,-946.8,0.00019726,2]
[323341080,1713906649299,-2551.94,0.00019726,2]
[323341081,1713906649309,-2595.58,0.00019726,2]
[323341082,1713906649318,-500.0,0.00019726,2]
[323341083,1713906649327,-500.0,0.00019726,2]
[323341084,1713906649337,-1746.36,0.00019726,2]
[323341085,1713906649346,-500.0,0.00019726,2]
[323341086,1713906649356,-814.3,0.00019726,2]
[323341087,1713906649365,-500.0,0.00019726,2]
[323341088,1713906649374,-599.33,0.00019726,2]
[323341089,1713906649383,-500.0,0.00019726,2]
[323341090,1713906649393,-500.0,0.00019726,2]
[323341091,1713906649402,-500.0,0.00019726,2]
[323341092,1713906649412,-817.94,0.00019726,2]
[323341093,1713906649421,-683.42,0.00019726,2]
[323341094,1713906649431,-500.0,0.00019726,2]
[323341095,1713906649440,-543.56,0.00019726,2]
[323341096,1713906649450,-635.60968491,0.00019726,2]
[323341097,1713906649459,-24227.66,0.00019726,2]
[323341098,1713906649469,-500.0,0.00019726,2]
[323341099,1713906649478,-500.0,0.00019726,2]
[323341100,1713906649487,-543.7,0.00019726,2]
[323341101,1713906649497,-500.0,0.00019726,2]
[323341102,1713906649507,-500.0,0.00019726,2]
[323341103,1713906649516,-892.02,0.00019726,2]
[323341104,1713906649526,-2080.56,0.00019726,2]
[323341105,1713906649535,-7466.61,0.00019726,2]
[323341106,1713906649545,-500.0,0.00019726,2]
[323341107,1713906649651,-10964.76,0.00019726,2]
[323341108,1713906649672,-2008.81,0.00019726,2]
[323341109,1713906649681,-6940.32,0.00019726,2]
[323341110,1713906649691,-304.14815888,0.00019726,2]
[323341111,1713906649700,-726.26,0.00019726,2]
[323341112,1713906649709,-500.0,0.00019726,2]
[323341113,1713906649718,-888.98,0.00019726,2]
[323341114,1713906649727,-356.10245493,0.00019726,2]
[323341115,1713906649739,-500.0,0.00019726,2]
[323341116,1713906649749,-423.47435075,0.00019726,2]
[323341117,1713906649758,-1789.94,0.00019726,2]
[323341118,1713906649768,-500.0,0.00019726,2]
[323341119,1713906649777,-17149.67,0.00019726,2]
[323341120,1713906649786,-14555.01,0.00019726,2]
[323341121,1713906649795,-500.0,0.00019726,2]
[323341122,1713906649804,-500.0,0.00019726,2]
[323341123,1713906649814,-1180.31,0.00019726,2]
[323341124,1713906649823,-7963.5,0.00019726,2]
[323341125,1713906649832,-500.0,0.00019726,2]
[323341126,1713906649842,-153.0,0.00019726,2]
[323341127,1713906649851,-153.0,0.00019726,2]
[323341128,1713906649860,-153.0,0.00019726,2]
[323341129,1713906649869,-153.0,0.00019726,2]
[323341130,1713906649879,-153.0,0.00019726,2]
[323341131,1713906649888,-153.0,0.00019726,2]
[323341132,1713906649897,-153.0,0.00019733,2]
[323341133,1713906649906,-153.0,0.00019733,2]
[323341134,1713906649915,-153.0,0.00019733,2]
[323341135,1713906649924,-306.0,0.00019733,2]
[323341136,1713906649934,-153.0,0.00019733,2]
[323341137,1713906649943,-153.0,0.00019733,2]
[323341138,1713906649952,-153.0,0.00019733,2]
[323341139,1713906649961,-153.0,0.00019733,2]
[323341140,1713906649971,-153.0,0.00019733,2]
[323341141,1713906649980,-307.690723,0.00019733,2]
[323341142,1713906649989,-203.583665,0.00019733,2]
[323341143,1713906649998,-306.0,0.00019884,2]
[323341144,1713906650007,-153.0,0.00019884,2]
[323341145,1713906650017,-153.0,0.00019884,2]
[323341146,1713906650026,-623.35847601,0.00019921,2]
[323341147,1713906650035,-14133.60960818,0.0002,2]
[323341148,1713906650044,-2000.0,0.0002,2]
[323341149,1713906650053,-284.0,0.0002,2]
[323341150,1713906650063,-2000.0,0.0002,2]
[323341151,1713906650072,-284.0,0.0002,2]
[323341152,1713906650083,-2000.0,0.0002,2]
[323341153,1713906650092,-2000.0,0.0002,2]
[323341154,1713906650101,-2000.0,0.0002,2]
[323341155,1713906650111,-172.1017468,0.0002,2]
[323341156,1713906650123,-524.5590718,0.0002,4]
[323341157,1713906650132,-1420.0,0.0002,2]
[323341158,1713906650142,-2000.0,0.0002,2]
[323341159,1713906650151,-2000.0,0.0002,2]
[323341160,1713906650161,-2000.0,0.0002,2]
[323341161,1713906650171,-1420.0,0.0002,2]
[323341162,1713906650181,-2000.0,0.0002,2]
[323341163,1713906650190,-2000.0,0.0002,2]
[323341164,1713906650202,-2000.0,0.0002,2]
[323341165,1713906650212,-2000.0,0.0002,2]
[323341166,1713906650221,-2000.0,0.0002,2]
[323341167,1713906650231,-2000.0,0.0002,2]
[323341168,1713906650240,-1420.0,0.0002,2]
[323341169,1713906650250,-2000.0,0.0002,2]
[323341170,1713906650260,-2000.0,0.0002,2]
[323341171,1713906650269,-2000.0,0.0002,2]
[323341172,1713906650279,-2000.0,0.0002,2]
[323341173,1713906650290,-238.88786072,0.0002,2]
[323341174,1713906650300,-319.72058798,0.0002,2]
[323341175,1713906650311,-533.56764581,0.0002,2]
[323341176,1713906650321,-1225.82127403,0.0002,2]
[323341177,1713906650331,-154.82968734,0.0002,2]
[323341178,1713906650343,-556.28204464,0.0002,2]
[323341179,1713906650354,-1301.42585683,0.0002,2]
[323341180,1713906650365,-10479.21612204,0.0002,2]
[323341181,1713906650377,-154.82968734,0.0002,2]
[323341182,1713906650387,-400.0,0.0002,2]
[323341183,1713906650397,-154.82968734,0.0002,2]
[323341184,1713906650407,-154.82968734,0.0002,2]
[323341185,1713906650417,-2000.0,0.0002,2]
[323341186,1713906650426,-2000.0,0.0002,2]
[323341187,1713906650436,-1420.0,0.0002,2]
[323341188,1713906650446,-2000.0,0.0002,2]
[323341189,1713906650455,-2000.0,0.0002,2]
[323341190,1713906650465,-2000.0,0.0002,2]
[323341191,1713906650474,-2000.0,0.0002,2]
[323341192,1713906650484,-1542.0,0.0002,2]
[323341193,1713906650494,-80000.0,0.0002,2]
[323341194,1713906650503,-51875.32463377,0.0002,2]
[323341195,1713906650512,-4230.40621117,0.0002,2]
[323341196,1713906650522,-500.0,0.0002,2]
[323341197,1713906650531,-500.0,0.0002,2]
[323341198,1713906650540,-500.0,0.0002,2]
[323341199,1713906650550,-520.67,0.0002,2]
[323341200,1713906650561,-210.80801574,0.0002,2]
[323341201,1713906650571,-627.95456207,0.0002,2]
[323341202,1713906650580,-657.21,0.0002,2]
[323341203,1713906650591,-904.57,0.0002,2]
[323341204,1713906650600,-513.66,0.0002,2]
[323341205,1713906650608,-452.62828504,0.0002,2]
[323341206,1713906650617,-580.19,0.0002,2]
[323341207,1713906650626,-589.6,0.0002,2]
[323341208,1713906650635,-500.0,0.0002,2]
[323341209,1713906650644,-500.0,0.0002,2]
[323341210,1713906650653,-1834.44,0.0002,2]
[323341211,1713906650662,-500.0,0.0002,2]
[323341212,1713906650672,-500.0,0.0002,2]
[323341213,1713906650681,-500.0,0.0002,2]
[323341214,1713906650690,-500.0,0.0002,2]
[323341215,1713906650699,-506.18473321,0.0002,2]
[323341216,1713906650708,-981.79,0.0002,2]
[323341217,1713906650718,-500.0,0.0002,2]
[323341218,1713906650727,-151.0,0.0002,2]
[323341219,1713906650736,-500.0,0.0002,2]
[323341220,1713906650746,-500.0,0.0002,2]
[323341221,1713906650755,-500.0,0.0002,2]
[323341222,1713906650764,-527.18,0.0002,2]
[323341223,1713906650774,-500.0,0.0002,2]
[323341224,1713906650783,-156.185413,0.0002,2]
[323341225,1713906650792,-500.0,0.0002,2]
[323341226,1713906650802,-500.0,0.0002,2]
[323341227,1713906650811,-151.0,0.0002,2]
[323341228,1713906650820,-500.0,0.0002,2]
[323341229,1713906650830,-500.0,0.0002,2]
[323341230,1713906650840,-200.269206,0.0002,2]
[323341231,1713906650849,-504.27,0.0002,2]
[323341232,1713906650859,-200.269206,0.0002,2]
[323341233,1713906650868,-500.0,0.0002,2]
[323341234,1713906650877,-500.0,0.0002,2]
[323341235,1713906650887,-500.0,0.0002,2]
[323341236,1713906650896,-500.0,0.0002,2]
[323341237,1713906650905,-500.0,0.0002,2]
[323341238,1713906650915,-500.0,0.0002,2]
[323341239,1713906650924,-360.28483403,0.0002,2]
[323341240,1713906650933,-500.0,0.0002,2]
[323341241,1713906650942,-500.0,0.0002,2]
[323341242,1713906650951,-1837.74,0.0002,2]
[323341243,1713906650961,-500.0,0.0002,2]
[323341244,1713906650970,-2077.29,0.0002,2]
[323341245,1713906650980,-500.0,0.0002,2]
[323341246,1713906650990,-616.09003582,0.0002,2]
[323341247,1713906650999,-151.0,0.0002,2]
[323341248,1713906651012,-500.0,0.0002,2]
[323341249,1713906651022,-500.0,0.0002,2]
[323341250,1713906651031,-500.0,0.0002,2]
[323341251,1713906651040,-500.0,0.0002,2]
[323341252,1713906651050,-847.99,0.0002,2]
[323341253,1713906651059,-500.0,0.0002,2]
[323341254,1713906651068,-1200.21,0.0002,2]
[323341255,1713906651079,-1530.74,0.0002,2]
[323341256,1713906651089,-500.0,0.0002,2]
[323341257,1713906651099,-500.0,0.0002,2]
[323341258,1713906651108,-500.0,0.0002,2]
[323341259,1713906651122,-1003.63,0.0002,2]
[323341260,1713906651131,-1106.45,0.0002,2]
[323341261,1713906651141,-500.0,0.0002,2]
[323341262,1713906651150,-1277.89,0.0002,2]
[323341263,1713906651161,-454.41937308,0.0002,2]
[323341264,1713906651171,-886.08,0.0002,2]
[323341265,1713906651181,-500.0,0.0002,2]
[323341266,1713906651191,-500.0,0.0002,2]
[323341267,1713906651200,-500.0,0.0002,2]
[323341268,1713906651210,-714.28,0.0002,2]
[323341269,1713906651219,-500.0,0.0002,2]
[323341270,1713906651229,-500.0,0.0002,2]
[323341271,1713906651238,-1022.02,0.0002,2]
[323341272,1713906651247,-546.63,0.0002,2]
[323341273,1713906651256,-500.0,0.0002,2]
[323341274,1713906651265,-500.0,0.0002,2]
[323341275,1713906651274,-905.67,0.0002,2]
[323341276,1713906651285,-500.0,0.0002,2]
[323341277,1713906651294,-711.87,0.0002,2]
[323341278,1713906651304,-500.0,0.0002,2]
[323341279,1713906651313,-850.29,0.0002,2]
[323341280,1713906651322,-500.0,0.0002,2]
[323341281,1713906651331,-500.0,0.0002,2]
[323341282,1713906651341,-3203.89,0.0002,2]
[323341283,1713906651350,-500.0,0.0002,2]
[323341284,1713906651359,-177.75,0.0002,2]
[323341285,1713906651368,-554.02,0.0002,2]
[323341286,1713906651378,-949.8,0.0002,2]
[323341287,1713906651387,-1567.71,0.0002,2]
[323341288,1713906651397,-500.0,0.0002,2]
[323341289,1713906651407,-1038.44,0.0002,2]
[323341290,1713906651416,-500.0,0.0002,2]
[323341291,1713906651426,-500.0,0.0002,2]
[323341292,1713906651435,-222.48413619,0.0002,2]
[323341293,1713906651445,-500.0,0.0002,2]
[323341294,1713906651454,-500.0,0.0002,2]
[323341295,1713906651463,-500.0,0.0002,2]
[323341296,1713906651473,-500.0,0.0002,2]
[323341297,1713906651482,-500.0,0.0002,2]
[323341298,1713906651492,-500.0,0.0002,2]
[323341299,1713906651501,-924.22,0.0002,2]
[323341300,1713906651511,-902.89,0.0002,2]
[323341301,1713906651520,-500.0,0.0002,2]
[323341302,1713906651530,-993.79,0.0002,2]
[323341303,1713906651539,-554.07,0.0002,2]
[323341304,1713906651549,-500.0,0.0002,2]
[323341305,1713906651558,-786.38,0.0002,2]
[323341306,1713906651567,-726.49,0.0002,2]
[323341307,1713906651577,-500.0,0.0002,2]
[323341308,1713906651586,-531.87,0.0002,2]
[323341309,1713906651595,-500.0,0.0002,2]
[323341310,1713906651604,-2258.36,0.0002,2]
[323341311,1713906651614,-500.0,0.0002,2]
[323341312,1713906651623,-1423.75,0.0002,2]
[323341313,1713906651632,-500.0,0.0002,2]
[323341314,1713906651641,-900.74,0.0002,2]
[323341315,1713906651651,-1478.54,0.0002,2]
[323341316,1713906651660,-588.86117877,0.0002,2]
[323341317,1713906651670,-500.0,0.0002,2]
[323341318,1713906651788,-500.0,0.0002,2]
[323341319,1713906651797,-1668.39,0.0002,2]
[323341320,1713906651807,-678.36,0.0002,2]
[323341321,1713906651817,-1376.89,0.0002,2]
[323341322,1713906651827,-500.0,0.0002,2]
[323341323,1713906651837,-500.0,0.0002,2]
[323341324,1713906651847,-500.0,0.0002,2]
[323341325,1713906651856,-2107.07,0.0002,2]
[323341326,1713906651866,-1737.0,0.0002,2]
[323341327,1713906651875,-1067.53,0.0002,2]
[323341328,1713906651885,-500.0,0.0002,2]
[323341329,1713906651894,-532.06,0.0002,2]
[323341330,1713906651904,-692.64,0.0002,2]
[323341331,1713906651914,-500.0,0.0002,2]
[323341332,1713906651923,-500.0,0.0002,2]
[323341333,1713906651933,-1195.52,0.0002,2]
[323341334,1713906651942,-500.0,0.0002,2]
[323341335,1713906651951,-1607.99,0.0002,2]
[323341336,1713906651961,-500.0,0.0002,2]
[323341337,1713906651970,-860.82,0.0002,2]
[323341338,1713906651980,-500.0,0.0002,2]
[323341339,1713906651989,-500.0,0.0002,2]
[323341340,1713906651999,-531.87,0.0002,2]
[323341341,1713906652008,-721.01,0.0002,2]
[323341342,1713906652018,-500.0,0.0002,2]
[323341343,1713906652027,-151.0,0.0002,2]
[323341344,1713906652036,-500.0,0.0002,2]
[323341345,1713906652046,-1486.41,0.0002,2]
[323341346,1713906652056,-500.0,0.0002,2]
[323341347,1713906652066,-2000.0,0.0002,2]
[323341348,1713906652076,-243.54433224,0.0002,2]
[323341349,1713906652086,-500.0,0.0002,2]
[323341350,1713906652096,-500.0,0.0002,2]
[323341351,1713906652106,-500.0,0.0002,2]
[323341352,1713906652117,-210.616359,0.0002,2]
[323341353,1713906652130,-1236.23,0.0002,2]
[323341354,1713906652142,-210.616359,0.0002,2]
[323341355,1713906652152,-500.0,0.0002,2]
[323341356,1713906652164,-2278.12,0.0002,2]
[323341357,1713906652174,-823.300687,0.0002,2]
[323341358,1713906652183,-500.0,0.0002,2]
[323341359,1713906652192,-10286.09,0.0002,2]
[323341360,1713906652203,-500.0,0.0002,2]
[323341361,1713906652212,-823.300687,0.0002,2]
[323341362,1713906652222,-1883.18,0.0002,2]
[323341363,1713906652231,-1093.525067,0.0002,2]
[323341364,1713906652241,-944.84,0.0002,2]
[323341365,1713906652251,-551.25531584,0.0002,2]
[323341366,1713906652260,-1093.525067,0.0002,2]
[323341367,1713906652271,-574.81,0.0002,2]
[323341368,1713906652281,-1124.79,0.0002,2]
[323341369,1713906652290,-745.02,0.0002,2]
[323341370,1713906652298,-1217.1,0.0002,2]
[323341371,1713906652307,-500.0,0.0002,2]
[323341372,1713906652316,-500.0,0.0002,2]
[323341373,1713906652326,-674.83,0.0002,2]
[323341374,1713906652336,-3698.81,0.0002,2]
[323341375,1713906652346,-713.93,0.0002,2]
[323341376,1713906652356,-151.0,0.0002,2]
[323341377,1713906652365,-500.0,0.0002,2]
[323341378,1713906652374,-151.0,0.0002,2]
[323341379,1713906652384,-500.0,0.0002,2]
[323341380,1713906652393,-7456.02,0.0002,2]
[323341381,1713906652403,-500.0,0.0002,2]
[323341382,1713906652412,-567.42,0.0002,2]
[323341383,1713906652421,-172.98940092,0.0002,2]
[323341384,1713906652431,-332.93259699,0.0002,2]
[323341385,1713906652440,-500.0,0.0002,2]
[323341386,1713906652450,-7031.43,0.0002,2]
[323341387,1713906652462,-219.565655,0.0002,2]
[323341388,1713906652471,-500.0,0.0002,2]
[323341389,1713906652481,-500.0,0.0002,2]
[323341390,1713906652490,-361.08025354,0.0002,2]
[323341391,1713906652500,-760.73,0.0002,2]
[323341392,1713906652509,-219.565655,0.0002,2]
[323341393,1713906652519,-1432.34,0.0002,2]
[323341394,1713906652528,-3253.21,0.0002,2]
[323341395,1713906652538,-493.0,0.0002,2]
[323341396,1713906652548,-4015.64,0.0002,2]
[323341397,1713906652557,-5262.87,0.0002,2]
[323341398,1713906652567,-928.49,0.0002,2]
[323341399,1713906652577,-500.0,0.0002,2]
[323341400,1713906652587,-500.0,0.0002,2]
[323341401,1713906652597,-500.0,0.0002,2]
[323341402,1713906652607,-500.0,0.0002,2]
[323341403,1713906652618,-500.0,0.0002,2]
[323341404,1713906652629,-633.96,0.0002,2]
[323341405,1713906652638,-1467.47,0.0002,2]
[323341406,1713906652647,-500.0,0.0002,2]
[323341407,1713906652657,-500.0,0.0002,2]
[323341408,1713906652666,-500.0,0.0002,2]
[323341409,1713906652676,-626.38,0.0002,2]
[323341410,1713906652685,-944.49,0.0002,2]
[323341411,1713906652695,-500.0,0.0002,2]
[323341412,1713906652703,-1655.39,0.0002,2]
[323341413,1713906652712,-500.0,0.0002,2]
[323341414,1713906652724,-500.0,0.0002,2]
[323341415,1713906652742,-500.0,0.0002,2]
[323341416,1713906652758,-500.0,0.0002,2]
[323341417,1713906652770,-946.8,0.0002,2]
[323341418,1713906652784,-2551.94,0.0002,2]
[323341419,1713906652800,-2595.58,0.0002,2]
[323341420,1713906652815,-500.0,0.0002,2]
[323341421,1713906652829,-500.0,0.0002,2]
[323341422,1713906652843,-1746.36,0.0002,2]
[323341423,1713906652857,-500.0,0.0002,2]
[323341424,1713906652871,-814.3,0.0002,2]
[323341425,1713906652888,-500.0,0.0002,2]
[323341426,1713906652899,-599.33,0.0002,2]
[323341427,1713906652916,-500.0,0.0002,2]
[323341428,1713906652932,-500.0,0.0002,2]
[323341429,1713906652946,-500.0,0.0002,2]
[323341430,1713906652960,-817.94,0.0002,2]
[323341431,1713906652975,-683.42,0.0002,2]
[323341432,1713906652991,-500.0,0.0002,2]
[323341433,1713906653007,-543.56,0.0002,2]
[323341434,1713906653021,-24227.66,0.0002,2]
[323341435,1713906653033,-500.0,0.0002,2]
[323341436,1713906653047,-500.0,0.0002,2]
[323341437,1713906653061,-543.7,0.0002,2]
[323341438,1713906653075,-500.0,0.0002,2]
[323341439,1713906653087,-500.0,0.0002,2]
[323341440,1713906653099,-892.02,0.0002,2]
[323341441,1713906653112,-2080.56,0.0002,2]
[323341442,1713906653128,-7466.61,0.0002,2]
[323341443,1713906653140,-500.0,0.0002,2]
[323341444,1713906653152,-2008.81,0.0002,2]
[323341445,1713906653166,-10964.76,0.0002,2]
[323341446,1713906653179,-6940.32,0.0002,2]
[323341447,1713906653193,-726.26,0.0002,2]
[323341448,1713906653205,-500.0,0.0002,2]
[323341449,1713906653217,-888.98,0.0002,2]
[323341450,1713906653229,-500.0,0.0002,2]
[323341451,1713906653242,-1789.94,0.0002,2]
[323341452,1713906653254,-500.0,0.0002,2]
[323341453,1713906653266,-17149.67,0.0002,2]
[323341454,1713906653279,-14555.01,0.0002,2]
[323341455,1713906653291,-200.0,0.0002,2]
[323341456,1713906653303,-500.0,0.0002,2]
[323341457,1713906653315,-150.7314115,0.0002,2]
[323341458,1713906653328,-1180.31,0.0002,2]
[323341459,1713906653340,-7963.5,0.0002,2]
[323341460,1713906653352,-267.28861337,0.0002,2]
[323341461,1713906653365,-150.0,0.0002003,2]
[323341462,1713906653377,-151.0,0.000202,2]
[323341463,1713906653390,-151.0,0.00020273,2]
[323341464,1713906653402,-500.0,0.00020273,2]
[323341465,1713906653414,-500.0,0.00020273,2]
[323341466,1713906653426,-330.11624755,0.00020273,2]
[323341467,1713906653439,-520.67,0.00020273,2]
[323341468,1713906653451,-657.21,0.00020273,2]
[323341469,1713906653464,-904.57,0.00020273,2]
[323341470,1713906653476,-513.66,0.00020273,2]
[323341471,1713906653490,-580.19,0.00020273,2]
[323341472,1713906653501,-589.6,0.00020273,2]
[323341473,1713906653514,-500.0,0.00020273,2]
[323341474,1713906653526,-500.0,0.00020273,2]
[323341475,1713906653539,-1834.44,0.00020273,2]
[323341476,1713906653552,-500.0,0.00020273,2]
[323341477,1713906653564,-500.0,0.00020273,2]
[323341478,1713906653577,-500.0,0.00020273,2]
[323341479,1713906653590,-427.16289909,0.00020273,2]
[323341480,1713906653602,-981.79,0.00020273,2]
[323341481,1713906653615,-500.0,0.00020273,2]
[323341482,1713906653628,-500.0,0.00020273,2]
[323341483,1713906653641,-500.0,0.00020273,2]
[323341484,1713906653653,-500.0,0.00020273,2]
[323341485,1713906653666,-527.18,0.00020273,2]
[323341486,1713906653679,-500.0,0.00020273,2]
[323341487,1713906653693,-500.0,0.00020273,2]
[323341488,1713906653705,-500.0,0.00020273,2]
[323341489,1713906653717,-500.0,0.00020273,2]
[323341490,1713906653730,-500.0,0.00020273,2]
[323341491,1713906653742,-504.27,0.00020273,2]
[323341492,1713906653755,-500.0,0.00020273,2]
[323341493,1713906653767,-500.0,0.00020273,2]
[323341494,1713906653779,-500.0,0.00020273,2]
[323341495,1713906653791,-500.0,0.00020273,2]
[323341496,1713906653804,-500.0,0.00020273,2]
[323341497,1713906653817,-500.0,0.00020273,2]
[323341498,1713906653830,-500.0,0.00020273,2]
[323341499,1713906653843,-500.0,0.00020273,2]
[323341500,1713906653855,-1837.74,0.00020273,2]
[323341501,1713906653868,-500.0,0.00020273,2]
[323341502,1713906653880,-2077.29,0.00020273,2]
[323341503,1713906653892,-500.0,0.00020273,2]
[323341504,1713906653906,-500.0,0.00020273,2]
[323341505,1713906653918,-500.0,0.00020273,2]
[323341506,1713906653931,-151.0,0.00020273,2]
[323341507,1713906653943,-500.0,0.00020273,2]
[323341508,1713906653953,-151.0,0.00020273,2]
[323341509,1713906653962,-500.0,0.00020273,2]
[323341510,1713906653972,-847.99,0.00020273,2]
[323341511,1713906654160,-500.0,0.00020273,2]
[323341512,1713906654170,-1200.21,0.00020273,2]
[323341513,1713906654180,-500.0,0.00020273,2]
[323341514,1713906654189,-1530.74,0.00020273,2]
[323341515,1713906654199,-417.73506971,0.00020273,2]
[323341516,1713906654209,-500.0,0.00020273,2]
[323341517,1713906654218,-1003.63,0.00020273,2]
[323341518,1713906654227,-1106.45,0.00020273,2]
[323341519,1713906654236,-500.0,0.00020273,2]
[323341520,1713906654247,-1277.89,0.00020273,2]